bitfinex/quotes_BTCUSD_20240718
["timestamp","ask_amount","ask_price","bid_price","bid_amount"]
[1721327818409,0.00283,63564.0,63563.0,1.43804974]
[1721327819134,0.00283,63564.0,63563.0,1.12340174]
[1721327819364,0.00283,63564.0,63563.0,0.339724]
[1721327819829,0.00283,63564.0,63563.0,0.96902]
[1721327821224,0.00283,63564.0,63563.0,1.12340174]
[1721327822619,0.00283,63564.0,63563.0,1.43804974]
[1721327824501,0.00283,63564.0,63563.0,1.42604974]
[1721327824502,0.00183,63564.0,63563.0,1.42604974]
[1721327824744,0.00183,63564.0,63563.0,1.44004974]
[1721327824963,0.00183,63564.0,63563.0,1.12540174]
[1721327825867,0.00083,63564.0,63563.0,1.12340174]
[1721327826101,0.00183,63564.0,63563.0,1.13740174]
[1721327826326,0.00183,63564.0,63563.0,1.12340174]
[1721327826824,0.00183,63564.0,63563.0,1.10940174]
[1721327826825,0.00083,63564.0,63563.0,1.10940174]
[1721327827540,0.00083,63564.0,63563.0,1.43804974]
[1721327827766,0.00183,63564.0,63563.0,1.45204974]
[1721327827994,0.00183,63564.0,63563.0,1.43804974]
[1721327828215,0.00183,63564.0,63563.0,1.45204974]
[1721327828686,0.00183,63564.0,63563.0,1.50204974]
[1721327830306,0.00183,63564.0,63563.0,1.13740174]
[1721327833074,0.00183,63564.0,63563.0,0.82275374]
[1721327833307,0.00183,63564.0,63563.0,0.35078174]
[1721327833542,0.473794,63564.0,63563.0,0.028]
[1721327833764,0.47671678,63564.0,63563.0,0.028]
[1721327835176,0.47671678,63564.0,63563.0,0.051]
[1721327835405,0.16207378,63564.0,63563.0,0.051]
[1721327835633,0.47671678,63564.0,63563.0,0.051]
[1721327836997,0.00475278,63564.0,63563.0,0.051]
[1721327837694,0.00475278,63564.0,63563.0,1.13250174]
[1721327838200,0.00183,63564.0,63563.0,1.62781538]
[1721327839617,0.00183,63564.0,63563.0,1.57781538]
[1721327839837,0.00183,63564.0,63563.0,1.57781456]
[1721327841646,0.00183,63564.0,63563.0,1.62781456]
[1721327842122,0.00183,63564.0,63563.0,1.57781456]
[1721327843018,0.00183,63564.0,63563.0,1.57781501]
[1721327843445,0.00183,63564.0,63563.0,1.62781501]
[1721327844115,0.00183,63564.0,63563.0,1.62781479]
[1721327844335,0.00183,63564.0,63563.0,1.57781479]
[1721327844777,0.00183,63564.0,63563.0,1.62781466]
[1721327844991,0.00183,63564.0,63563.0,1.57781466]
[1721327845938,0.00183,63564.0,63563.0,1.62781466]
[1721327846587,0.00183,63564.0,63563.0,1.57781466]
[1721327847697,0.00183,63564.0,63563.0,1.62781466]
[1721327847924,0.00183,63564.0,63563.0,1.57781466]
[1721327849085,0.00183,63564.0,63563.0,1.09966666]
[1721327849312,0.00183,63564.0,63563.0,0.96900174]
[1721327850724,0.00183,63564.0,63563.0,0.99200174]
[1721327856191,0.159151,63564.0,63563.0,0.028]
[1721327856419,0.473794,63564.0,63563.0,0.028]
[1721327856646,0.47575313,63564.0,63563.0,0.028]
[1721327856876,0.16111013,63564.0,63563.0,0.028]
[1721327857572,0.16041013,63564.0,63563.0,0.028]
[1721327857789,0.16041013,63564.0,63563.0,0.037]
[1721327858014,0.15941013,63564.0,63563.0,0.036]
[1721327858253,0.16041013,63564.0,63563.0,0.046]
[1721327858468,0.00308913,63564.0,63563.0,0.67235374]
[1721327858926,0.00113,63564.0,63563.0,0.67235374]
[1721327859150,0.00308913,63564.0,63563.0,0.67235374]
[1721327859371,0.00113,63564.0,63563.0,0.67235374]
[1721327859601,0.00308913,63564.0,63563.0,0.67235374]
[1721327859876,0.00308913,63564.0,63563.0,0.046]
[1721327862537,0.00308913,63564.0,63563.0,0.203324]
[1721327862985,0.00308913,63564.0,63563.0,0.517972]
[1721327863454,0.00308913,63564.0,63563.0,0.67235374]
[1721327863676,0.00308913,63564.0,63563.0,0.98700174]
[1721327863909,0.00113,63564.0,63563.0,1.30164974]
[1721327865307,0.00113,63564.0,63563.0,1.28864974]
[1721327865781,0.00113,63564.0,63563.0,0.67335374]
[1721327866016,0.00113,63564.0,63563.0,0.34870574]
[1721327866235,0.00013,63564.0,63563.0,0.037]
[1721327866453,0.00113,63564.0,63563.0,0.051]
[1721327866908,0.00013,63564.0,63563.0,0.037]
[1721327867146,0.0021443,63564.0,63563.0,0.037]
[1721327867398,0.00113,63564.0,63563.0,0.521972]
[1721327867644,0.00113,63564.0,63563.0,0.507972]
[1721327868073,0.00314263,63564.0,63563.0,0.521972]
[1721327868519,0.00314263,63564.0,63563.0,0.534972]
[1721327868992,0.00314263,63564.0,63563.0,0.220324]
[1721327869214,0.00214263,63564.0,63563.0,0.207324]
[1721327869673,0.00214263,63564.0,63563.0,0.216324]
[1721327870358,0.00214263,63564.0,63563.0,1.31464974]
[1721327870791,0.00214263,63564.0,63563.0,1.37584974]
[1721327870792,0.00013,63564.0,63563.0,1.37584974]
[1721327871257,0.00013,63564.0,63563.0,1.34884974]
[1721327871706,0.00013,63564.0,63563.0,1.43844974]
[1721327872613,0.00013,63564.0,63563.0,1.56911452]
[1721327873100,0.00013,63564.0,63563.0,1.56011452]
[1721327873327,0.00113,63564.0,63563.0,1.58311452]
[1721327873849,0.00013,63564.0,63563.0,1.57311561]
[1721327874071,0.00113,63564.0,63563.0,1.45644974]
[1721327874523,0.00113,63564.0,63563.0,1.31864974]
[1721327874958,0.00113,63564.0,63563.0,1.29264974]
[1721327875466,0.00013,63564.0,63563.0,1.29264974]
[1721327875680,0.00013,63564.0,63563.0,1.27864974]
[1721327875897,0.00013,63564.0,63563.0,1.29264974]
[1721327876856,0.00113,63564.0,63563.0,1.30664974]
[1721327880868,0.00113,63564.0,63563.0,1.43731888]
[1721327881104,0.00113,63564.0,63563.0,1.80196418]
[1721327881389,0.00113,63564.0,63563.0,2.36071218]
[1721327881598,0.04930024,63576.0,63575.0,1.101061]
[1721327881809,0.0617,63583.0,63582.0,0.157277]
[1721327882008,0.0617,63583.0,63575.0,0.67467074]
[1721327882009,0.0617,63583.0,63575.0,0.497289]
[1721327882143,0.15728,63581.0,63577.0,0.157289]
[1721327882376,0.06372372,63583.0,63572.0,0.3146]
[1721327882755,0.15728,63581.0,63577.0,0.157288]
[1721327882984,0.0828,63580.0,63578.0,0.023]
[1721327883225,0.08482352,63580.0,63578.0,0.023]
[1721327883673,0.08482352,63580.0,63578.0,0.157286]
[1721327883893,0.24210652,63580.0,63579.0,0.023]
[1721327884142,0.24210652,63580.0,63577.0,0.023]
[1721327885306,0.063,63578.0,63577.0,0.031]
[1721327885533,0.220287,63578.0,63577.0,0.031]
[1721327885716,0.22231887,63578.0,63577.0,0.031]
[1721327885972,0.06503187,63578.0,63577.0,0.036]
[1721327886434,0.06503187,63578.0,63577.0,0.031]
[1721327886897,0.06503187,63578.0,63577.0,0.03]
[1721327886898,0.22231887,63578.0,63577.0,0.03]
[1721327887116,0.06503187,63578.0,63577.0,0.03]
[1721327887569,0.93046687,63578.0,63577.0,0.03]
[1721327887790,0.93046687,63578.0,63577.0,0.007]
[1721327888907,0.93046687,63578.0,63577.0,0.018]
[1721327889586,0.61589287,63578.0,63577.0,0.018]
[1721327889817,0.30131887,63578.0,63577.0,0.018]
[1721327890546,0.14403187,63578.0,63577.0,0.041]
[1721327890830,0.00203187,63578.0,63577.0,0.512868]
[1721327891045,0.00203187,63578.0,63577.0,0.827447]
[1721327891259,0.0609,63582.0,63580.0,0.157282]
[1721327892158,0.0609,63582.0,63581.0,0.494838]
[1721327893521,0.0609,63582.0,63581.0,0.502838]
[1721327897672,0.0629283,63582.0,63581.0,0.502838]
[1721327899477,0.0020283,63582.0,63581.0,0.817397]
[1721327899942,0.0821,63583.0,63582.0,0.157277]
[1721327900161,0.0821,63583.0,63582.0,0.180277]
[1721327900602,0.0605,63585.0,63583.0,0.157273]
[1721327900820,0.0605,63585.0,63584.0,0.023]
[1721327901769,0.0605,63585.0,63583.0,0.023]
[1721327902471,0.471823,63583.0,63582.0,0.004]
[1721327902688,0.157282,63580.0,63575.0,0.157294]
[1721327902903,0.157282,63580.0,63576.0,0.023]
[1721327903359,0.157284,63579.0,63576.0,0.023]
[1721327903875,0.157284,63579.0,63575.0,0.023]
[1721327904094,0.471844,63581.0,63575.0,0.337588]
[1721327904313,0.471844,63581.0,63576.0,0.15729]
[1721327904531,0.157282,63580.0,63577.0,0.023]
[1721327904720,0.15728,63581.0,63577.0,0.180289]
[1721327905657,0.455549,63583.0,63579.0,0.314568]
[1721327905658,0.141,63583.0,63579.0,0.314568]
[1721327905893,0.0628,63586.0,63583.0,0.157274]
[1721327906164,0.0628,63586.0,63581.0,0.314558]
[1721327906377,0.0628,63586.0,63584.0,0.023]
[1721327907281,0.00202872,63585.0,63584.0,0.023]
[1721327907697,0.00202872,63585.0,63584.0,0.180272]
[1721327907919,0.02664002,63585.0,63584.0,0.023]
[1721327908137,0.00202872,63585.0,63584.0,0.023]
[1721327909507,0.00202872,63585.0,63573.0,0.314596]
[1721327909508,0.157281,63581.0,63573.0,0.314596]
[1721327909756,0.314545,63584.0,63559.0,0.01890196]
[1721327909757,0.1466,63579.0,63565.0,0.0663]
[1721327909995,0.00202872,63585.0,63561.0,0.0663]
[1721327909996,0.0638,63570.0,63561.0,0.0663]
[1721327910223,0.0828,63568.0,63562.0,0.15438174]
[1721327910441,0.0828,63568.0,63566.0,0.157316]
[1721327910664,0.0499806,63574.0,63567.0,0.15438174]
[1721327910907,0.2072776,63574.0,63570.0,0.157306]
[1721327911174,0.157299,63573.0,63569.0,0.157308]
[1721327911826,0.002794,63572.0,63570.0,0.023]
[1721327912049,0.157299,63573.0,63570.0,0.023]
[1721327912298,0.293595,63575.0,63570.0,0.180306]
[1721327912528,0.002794,63574.0,63571.0,0.157304]
[1721327912756,0.293595,63575.0,63572.0,0.023]
[1721327912971,0.04970376,63582.0,63574.0,0.157295]
[1721327912972,0.0602,63579.0,63574.0,0.157295]
[1721327913194,0.06252157,63578.0,63575.0,0.023]
[1721327913432,0.06252157,63577.0,63575.0,0.023]
[1721327913637,0.217485,63579.0,63575.0,0.023]
[1721327913860,0.06235434,63578.0,63575.0,0.023]
[1721327914100,0.06235434,63577.0,63575.0,0.023]
[1721327914336,0.471876,63576.0,63575.0,0.023]
[1721327914564,0.157297,63574.0,63573.0,0.023]
[1721327915713,0.157297,63574.0,63571.0,0.023]
[1721327916418,0.157297,63574.0,63573.0,0.008]
[1721327916655,0.157295,63575.0,63573.0,0.023]
[1721327916876,0.157295,63575.0,63574.0,0.023]
[1721327917327,0.157295,63575.0,63572.0,0.023]
[1721327917586,0.04970376,63582.0,63574.0,0.33708174]
[1721327917802,0.04970376,63582.0,63581.0,0.157279]
[1721327918248,0.157267,63586.0,63581.0,0.180279]
[1721327918465,0.157267,63586.0,63581.0,0.157279]
[1721327918648,0.157267,63586.0,63582.0,0.023]
[1721327919160,0.15727,63585.0,63582.0,0.023]
[1721327919396,0.0602,63587.0,63582.0,0.023]
[1721327919584,0.471811,63585.0,63582.0,0.023]
[1721327919953,0.298774,63583.0,63582.0,0.001]
[1721327920152,0.35996207,63583.0,63582.0,0.001]
[1721327920352,0.98906007,63583.0,63582.0,0.001]
[1721327920910,1.39747176,63583.0,63582.0,0.001]
[1721327921513,1.39747176,63583.0,63571.0,0.157304]
[1721327921514,0.157296,63575.0,63571.0,0.157304]
[1721327922200,0.157296,63575.0,63572.0,0.023]
[1721327922201,0.00201381,63574.0,63572.0,0.023]
[1721327922599,0.15931081,63574.0,63572.0,0.023]
[1721327922878,0.21981081,63574.0,63571.0,0.023]
[1721327923315,0.00201381,63574.0,63573.0,0.157299]
[1721327923560,0.00201381,63574.0,63573.0,0.64927874]
[1721327923781,0.002794,63581.0,63576.0,0.157289]
[1721327924001,0.18189791,63580.0,63577.0,0.023]
[1721327924219,0.00202048,63580.0,63577.0,0.023]
[1721327925133,0.15930248,63580.0,63577.0,0.027]
[1721327925396,0.218287,63578.0,63577.0,0.004]
[1721327925619,0.930235,63578.0,63577.0,0.004]
[1721327925845,1.30854919,63578.0,63577.0,0.004]
[1721327926067,0.32772615,63578.0,63577.0,0.004]
[1721327926292,0.61768435,63578.0,63577.0,0.004]
[1721327926500,0.93225835,63578.0,63577.0,0.011]
[1721327926786,0.93225835,63578.0,63577.0,0.034]
[1721327927024,0.95687418,63578.0,63577.0,0.027]
[1721327927269,0.95687418,63578.0,63577.0,0.032]
[1721327927509,0.99390956,63578.0,63577.0,0.029]
[1721327927742,0.95687418,63578.0,63577.0,0.033]
[1721327927966,0.99390981,63578.0,63577.0,0.027]
[1721327928211,0.99390981,63578.0,63577.0,0.028]
[1721327928708,0.99389284,63578.0,63577.0,0.028]
[1721327928987,0.95687418,63578.0,63577.0,0.028]
[1721327929196,0.99389213,63578.0,63577.0,0.028]
[1721327930271,1.30846613,63578.0,63577.0,0.005]
[1721327931208,1.30846613,63578.0,63577.0,0.004]
[1721327931667,1.46245731,63578.0,63577.0,0.004]
[1721327931885,1.30810773,63578.0,63577.0,0.004]
[1721327932127,1.30893773,63578.0,63577.0,0.004]
[1721327932573,0.157306,63571.0,63567.0,0.157312]
[1721327932801,0.157306,63571.0,63568.0,0.023]
[1721327932995,0.314606,63572.0,63568.0,0.180311]
[1721327932996,0.00202684,63570.0,63568.0,0.180311]
[1721327933403,0.157302,63572.0,63568.0,0.180311]
[1721327933616,0.00202517,63569.0,63568.0,0.494934]
[1721327933827,0.157292,63576.0,63572.0,0.157301]
[1721327934082,0.002794,63575.0,63573.0,0.180298]
[1721327934307,0.002794,63575.0,63574.0,0.157297]
[1721327934308,0.0020079,63575.0,63574.0,0.157297]
[1721327934527,0.158117,63578.0,63574.0,0.180297]
[1721327934759,0.00083,63578.0,63575.0,0.17738174]
[1721327934974,0.00083,63578.0,63577.0,0.471868]
[1721327935207,0.00083,63578.0,63577.0,0.180289]
[1721327935882,0.00083,63578.0,63577.0,0.494868]
[1721327937230,0.00083,63578.0,63577.0,0.503868]
[1721327937461,0.00083,63578.0,63577.0,0.509868]
[1721327937934,0.00083,63578.0,63577.0,0.195289]
[1721327938184,0.00284319,63578.0,63577.0,0.509868]
[1721327938397,0.00284319,63578.0,63577.0,0.038]
[1721327942117,0.00083,63578.0,63577.0,0.038]
[1721327942338,0.00083,63578.0,63577.0,0.195289]
[1721327942789,0.00083,63578.0,63577.0,0.66424974]
[1721327943030,0.00083,63578.0,63577.0,0.97882874]
[1721327943282,0.00083,63578.0,63577.0,0.66424974]
[1721327943502,0.00083,63578.0,63577.0,0.65524974]
[1721327943691,0.00083,63578.0,63577.0,0.64924974]
[1721327943941,0.00083,63578.0,63577.0,0.98182874]
[1721327945986,0.00083,63578.0,63577.0,0.66724974]
[1721327946215,0.00083,63578.0,63577.0,0.98182874]
[1721327946439,0.00083,63578.0,63577.0,0.66724974]
[1721327946664,0.00083,63578.0,63577.0,0.018]
[1721327946908,0.614391,63578.0,63577.0,0.018]
[1721327947146,0.9672049,63578.0,63577.0,0.018]
[1721327947390,0.95358016,63578.0,63577.0,0.018]
[1721327947614,1.43388963,63578.0,63577.0,0.018]
[1721327947868,1.5278498,63578.0,63577.0,0.018]
[1721327948105,1.74846363,63578.0,63577.0,0.018]
[1721327948358,1.74846363,63578.0,63577.0,0.011]
[1721327948586,1.74846363,63578.0,63564.0,0.158234]
[1721327948587,0.157311,63569.0,63564.0,0.158234]
[1721327948802,0.314605,63572.0,63564.0,0.000913]
[1721327949017,0.157311,63569.0,63564.0,0.158233]
[1721327949718,0.157311,63568.0,63564.0,0.158233]
[1721327949936,0.314616,63570.0,63565.0,0.180319]
[1721327949937,0.157309,63569.0,63565.0,0.180319]
[1721327951709,0.157306,63571.0,63566.0,0.157315]
[1721327951922,0.157306,63571.0,63567.0,0.023]
[1721327952143,0.15731,63569.0,63567.0,0.023]
[1721327952366,0.15731,63569.0,63566.0,0.023]
[1721327952591,0.157312,63568.0,63566.0,0.023]
[1721327953285,0.157312,63568.0,63565.0,0.023]
[1721327953511,0.157312,63568.0,63566.0,0.001]
[1721327953935,0.157312,63568.0,63565.0,0.023]
[1721327954169,0.157312,63568.0,63566.0,0.013]
[1721327954376,0.157312,63568.0,63567.0,0.023]
[1721327955065,0.157312,63568.0,63565.0,0.023]
[1721327955255,0.157312,63568.0,63565.0,0.031]
[1721327956431,0.314615,63570.0,63565.0,0.031]
[1721327956432,0.314621,63569.0,63565.0,0.031]
[1721327956647,0.314598,63574.0,63565.0,0.031]
[1721327956648,0.157314,63567.0,63565.0,0.031]
[1721327956891,0.157314,63567.0,63565.0,0.023]
[1721327957171,0.157314,63567.0,63565.0,0.005]
[1721327957404,0.455024,63568.0,63566.0,0.023]
[1721327957405,0.297712,63568.0,63566.0,0.023]
[1721327957639,0.0634,63568.0,63567.0,0.008]
[1721327957856,0.157309,63569.0,63567.0,0.031]
[1721327958078,0.157309,63569.0,63566.0,0.023]
[1721327958511,0.314611,63571.0,63566.0,0.023]
[1721327958512,0.157312,63568.0,63566.0,0.023]
[1721327959200,0.157312,63568.0,63565.0,0.023]
[1721327959912,0.314626,63568.0,63565.0,0.023]
[1721327960139,0.157315,63567.0,63564.0,0.023913]
[1721327960367,0.157319,63565.0,63564.0,0.000913]
[1721327961999,0.157319,63565.0,63564.0,0.020913]
[1721327962230,0.157319,63565.0,63564.0,0.043913]
[1721327963137,0.786595,63565.0,63564.0,0.043913]
[1721327963837,0.786595,63565.0,63564.0,0.020913]
[1721327964502,0.849195,63565.0,63564.0,0.020913]
[1721327965011,1.37164809,63565.0,63564.0,0.020913]
[1721327965258,1.37164801,63565.0,63564.0,0.020913]
[1721327965477,1.75665873,63565.0,63564.0,0.020913]
[1721327965699,1.62012973,63565.0,63564.0,0.020913]
[1721327965934,1.58179169,63565.0,63564.0,0.020913]
[1721327966163,1.61977157,63565.0,63564.0,0.020913]
[1721327966384,1.3056813,63565.0,63564.0,0.020913]
[1721327966617,0.00083,63567.0,63564.0,0.020913]
[1721327966618,0.00083,63567.0,63564.0,0.33261574]
[1721327966834,0.00083,63567.0,63565.0,0.324617]
[1721327967402,0.00083,63567.0,63565.0,0.1673]
[1721327967827,0.00083,63567.0,63565.0,0.324618]
[1721327968063,0.00083,63567.0,63566.0,0.157316]
[1721327968288,0.00283,63567.0,63566.0,0.180316]
[1721327968742,0.00083,63567.0,63566.0,0.180316]
[1721327970351,0.00083,63567.0,63566.0,0.023]
[1721327970569,0.935,63567.0,63566.0,0.009]
[1721327970800,0.620372,63567.0,63566.0,0.009]
[1721327971025,0.472772,63567.0,63566.0,0.015]
[1721327971251,0.7874,63567.0,63566.0,0.015]
[1721327971911,0.472772,63567.0,63566.0,0.015]
[1721327972786,0.7874,63567.0,63566.0,0.015]
[1721327973727,0.472772,63567.0,63566.0,0.015]
[1721327974456,0.00083,63567.0,63566.0,0.195316]
[1721327976459,0.00083,63567.0,63566.0,0.509949]
[1721327976712,0.00083,63567.0,63566.0,0.195316]
[1721327977200,0.00083,63567.0,63566.0,0.509949]
[1721327981500,0.00083,63567.0,63566.0,0.195316]
[1721327981723,0.00083,63567.0,63566.0,0.015]
[1721327981724,0.9298,63567.0,63566.0,0.015]
[1721327981945,1.03920342,63567.0,63566.0,0.015]
[1721327982167,1.35383142,63567.0,63566.0,0.015]
[1721327982834,1.35383142,63567.0,63566.0,0.006]
[1721327983076,1.35383142,63567.0,63566.0,0.008]
[1721327984036,1.35383142,63567.0,63566.0,0.002]
[1721327984290,1.35483142,63567.0,63566.0,0.002]
[1721327984992,1.31732145,63567.0,63566.0,0.002]
[1721327985488,1.35502262,63567.0,63566.0,0.002]
[1721327986409,1.30774762,63567.0,63566.0,0.002]
[1721327988275,1.30773145,63567.0,63566.0,0.002]
[1721327991108,1.46211319,63567.0,63566.0,0.002]
[1721327991341,1.73905619,63567.0,63566.0,0.002]
[1721327991556,1.77647254,63567.0,63566.0,0.002]
[1721327991751,2.02466308,63567.0,63566.0,0.002]
[1721327992251,1.93082211,63567.0,63566.0,0.002]
[1721327992511,2.02466308,63567.0,63566.0,0.002]
[1721327992720,2.04812332,63567.0,63566.0,0.002]
[1721327993025,2.1481786,63567.0,63566.0,0.002]
[1721327993114,2.03082211,63567.0,63566.0,0.002]
[1721327994475,2.03165219,63567.0,63566.0,0.002]
[1721327994932,1.415871,63565.0,63564.0,0.000913]
[1721327995160,1.77585092,63565.0,63564.0,0.000913]
[1721327996085,1.87585092,63565.0,63564.0,0.000913]
[1721327996974,1.87585092,63565.0,63564.0,0.001913]
[1721327996975,1.87885092,63565.0,63564.0,0.001913]
[1721327997193,2.03320049,63565.0,63564.0,0.001913]
[1721327997638,1.99492076,63565.0,63564.0,0.001913]
[1721327997889,2.03364704,63565.0,63564.0,0.001913]
[1721327998171,2.03764704,63565.0,63564.0,0.002913]
[1721327998610,2.1549161,63565.0,63564.0,0.002913]
[1721327998845,2.00056653,63565.0,63564.0,0.002913]
[1721328000486,1.41427773,63565.0,63564.0,0.002913]
[1721328000714,1.97726376,63565.0,63564.0,0.002913]
[1721328000961,2.00071336,63565.0,63564.0,0.002913]
[1721328001169,1.88345237,63565.0,63564.0,0.002913]
[1721328001385,1.99671336,63565.0,63564.0,0.001913]
[1721328001605,1.99670024,63565.0,63564.0,0.001913]
[1721328001831,1.99670024,63565.0,63564.0,0.002913]
[1721328001832,2.15404981,63565.0,63564.0,0.002913]
[1721328002130,2.13061791,63565.0,63564.0,0.002913]
[1721328002589,0.85609463,63565.0,63564.0,0.002913]
[1721328002822,0.85309463,63565.0,63564.0,0.001913]
[1721328003062,0.85309463,63565.0,63564.0,0.002913]
[1721328003063,0.54145663,63565.0,63564.0,0.002913]
[1721328003301,0.53780605,63565.0,63564.0,0.001913]
[1721328003540,0.22316805,63565.0,63564.0,0.001913]
[1721328003794,0.006,63565.0,63564.0,0.160234]
[1721328004019,0.003,63565.0,63564.0,0.560077]
[1721328004240,0.00083,63567.0,63564.0,0.559077]
[1721328004468,0.00083,63567.0,63565.0,0.1037]
[1721328005221,0.00083,63567.0,63565.0,0.261018]
[1721328006401,0.00083,63567.0,63566.0,0.157316]
[1721328006638,0.00083,63567.0,63566.0,0.180316]
[1721328006863,0.00083,63567.0,63566.0,0.023]
[1721328007556,0.158144,63567.0,63566.0,0.023]
[1721328007808,0.158144,63567.0,63565.0,0.007]
[1721328007809,1.101215,63566.0,63565.0,0.007]
[1721328008026,1.16403477,63566.0,63565.0,0.007]
[1721328008245,1.101233,63565.0,63564.0,0.000913]
[1721328008500,1.16405277,63565.0,63564.0,0.000913]
[1721328008747,1.30187905,63565.0,63564.0,0.000913]
[1721328008971,1.53796079,63565.0,63564.0,0.000913]
[1721328009430,1.59926079,63565.0,63564.0,0.000913]
[1721328009661,1.69926079,63565.0,63564.0,0.000913]
[1721328009911,1.81643026,63565.0,63564.0,0.000913]
[1721328010362,1.50077534,63565.0,63564.0,0.000913]
[1721328010606,1.09229386,63565.0,63564.0,0.000913]
[1721328010842,1.01059386,63565.0,63564.0,0.000913]
[1721328011072,1.32523186,63565.0,63564.0,0.000913]
[1721328011522,1.33123186,63565.0,63564.0,0.001913]
[1721328011742,1.32623186,63565.0,63564.0,0.000913]
[1721328011961,1.33123186,63565.0,63564.0,0.000913]
[1721328012721,1.33023186,63565.0,63564.0,0.000913]
[1721328013193,1.4006143,63565.0,63564.0,0.000913]
[1721328013417,1.56635706,63565.0,63564.0,0.000913]
[1721328013636,1.53123613,63565.0,63564.0,0.000913]
[1721328013869,1.6397478,63565.0,63564.0,0.000913]
[1721328014089,1.6317478,63565.0,63564.0,0.000913]
[1721328014308,1.6407478,63565.0,63564.0,0.001913]
[1721328014552,1.63675043,63565.0,63564.0,0.001913]
[1721328014784,1.16273069,63565.0,63564.0,0.000913]
[1721328015031,1.16273069,63565.0,63564.0,0.001913]
[1721328015032,1.16673069,63565.0,63564.0,0.001913]
[1721328015259,1.41597588,63565.0,63564.0,0.002913]
[1721328015430,1.48636869,63565.0,63564.0,0.002913]
[1721328015649,1.48636869,63565.0,63564.0,0.001913]
[1721328015650,1.16673069,63565.0,63564.0,0.001913]
[1721328015857,1.01463788,63565.0,63564.0,0.002913]
[1721328016057,1.33427588,63565.0,63564.0,0.002913]
[1721328016224,1.01963788,63565.0,63564.0,0.002913]
[1721328016430,0.92021639,63565.0,63564.0,0.002913]
[1721328016637,0.95852856,63565.0,63564.0,0.002913]
[1721328016811,1.27316656,63565.0,63564.0,0.002913]
[1721328017224,1.26816656,63565.0,63564.0,0.001913]
[1721328017420,0.95452856,63565.0,63564.0,0.001913]
[1721328017654,0.95452856,63565.0,63564.0,0.002913]
[1721328017655,0.95852856,63565.0,63564.0,0.002913]
[1721328017862,0.95452856,63565.0,63564.0,0.001913]
[1721328018071,1.10887813,63565.0,63564.0,0.001913]
[1721328018284,1.11287813,63565.0,63564.0,0.001913]
[1721328018951,1.42751613,63565.0,63564.0,0.001913]
[1721328019186,0.95852856,63565.0,63564.0,0.001913]
[1721328019647,0.95855808,63565.0,63564.0,0.001913]
[1721328020077,0.95455808,63565.0,63564.0,0.001913]
[1721328020327,0.94955808,63565.0,63564.0,0.000913]
[1721328020539,0.63892008,63565.0,63564.0,0.000913]
[1721328020958,0.63992008,63565.0,63564.0,0.000913]
[1721328021376,0.02962139,63565.0,63564.0,0.000913]
[1721328021594,0.005,63565.0,63564.0,0.000913]
[1721328022244,0.162319,63565.0,63564.0,0.000913]
[1721328023111,0.005,63565.0,63564.0,0.000913]
[1721328023321,0.472777,63567.0,63564.0,0.000913]
[1721328023531,0.158145,63567.0,63564.0,0.004913]
[1721328023747,0.00083,63567.0,63565.0,0.1384]
[1721328023954,0.00083,63567.0,63566.0,0.023]
[1721328024370,0.00083,63567.0,63566.0,0.180316]
[1721328024583,0.00083,63567.0,63566.0,0.023]
[1721328024584,0.00283,63567.0,63566.0,0.023]
[1721328025002,0.00083,63567.0,63566.0,0.023]
[1721328025285,0.00283,63567.0,63566.0,0.023]
[1721328025707,0.00283,63567.0,63566.0,0.180316]
[1721328026332,0.00283,63567.0,63566.0,0.181316]
[1721328026749,0.00083,63567.0,63566.0,0.180316]
[1721328026957,0.00083,63567.0,63566.0,0.187316]
[1721328028691,0.00083,63567.0,63566.0,0.501949]
[1721328030036,0.00083,63567.0,63566.0,0.03]
[1721328030261,0.00083,63567.0,63566.0,0.007]
[1721328030262,0.158144,63567.0,63566.0,0.007]
[1721328030481,0.51098225,63567.0,63566.0,0.007]
[1721328031120,0.53560243,63567.0,63566.0,0.007]
[1721328031324,0.471957,63565.0,63564.0,0.000913]
[1721328031557,0.98942543,63565.0,63564.0,0.000913]
[1721328031815,1.87099768,63565.0,63564.0,0.000913]
[1721328032054,1.87700567,63565.0,63564.0,0.000913]
[1721328032269,1.95135005,63565.0,63564.0,0.000913]
[1721328032479,2.03135524,63565.0,63564.0,0.000913]
[1721328032931,1.99314499,63565.0,63564.0,0.000913]
[1721328033202,1.87706383,63565.0,63564.0,0.000913]
[1721328033419,1.84279542,63565.0,63564.0,0.001913]
[1721328033627,1.99850999,63565.0,63564.0,0.001913]
[1721328033847,1.87706451,63565.0,63564.0,0.000913]
[1721328034091,2.03541408,63565.0,63564.0,0.001913]
[1721328034378,2.04041408,63565.0,63564.0,0.001913]
[1721328034749,2.04441408,63565.0,63564.0,0.002913]
[1721328039553,2.16186251,63565.0,63564.0,0.002913]
[1721328040010,2.04441408,63565.0,63564.0,0.002913]
[1721328041132,2.16186382,63565.0,63564.0,0.002913]
[1721328041760,1.89006451,63565.0,63564.0,0.002913]
[1721328042185,1.42104477,63565.0,63564.0,0.002913]
[1721328042612,1.42139142,63565.0,63564.0,0.002913]
[1721328042823,1.53884481,63565.0,63564.0,0.002913]
[1721328043038,1.24277568,63565.0,63564.0,0.002913]
[1721328043260,1.35187022,63565.0,63564.0,0.002913]
[1721328043477,1.28139187,63565.0,63564.0,0.002913]
[1721328043693,1.5018999,63565.0,63564.0,0.002913]
[1721328043922,1.41842313,63565.0,63564.0,0.000913]
[1721328044130,1.42342313,63565.0,63564.0,0.001913]
[1721328044337,1.11278513,63565.0,63564.0,0.001913]
[1721328044557,0.19486168,63565.0,63564.0,0.001913]